bitfinex-derivatives/quotes_ETHF0:USTF0_20250606
["timestamp","ask_amount","ask_price","bid_price","bid_amount"]
[1749247838299,0.0060218,2490.2,2490.1,0.80254]
[1749247840396,0.0060218,2490.2,2490.0,5.53557]
[1749247840599,4.01036,2490.1,2490.0,5.53557]
[1749247841097,3.2078,2490.1,2490.0,5.53557]
[1749247841895,4.01034,2490.1,2490.0,5.53557]
[1749247842096,3.2078,2490.1,2490.0,5.53557]
[1749247842497,1.45655531,2490.2,2490.1,0.80254]
[1749247842694,0.07735531,2490.2,2490.1,0.80254]
[1749247843004,0.07735531,2490.2,2490.1,1.47944]
[1749247843497,0.0060218,2490.2,2490.1,1.47944]
[1749247847898,0.0060218,2490.2,2490.1,2.82464]
[1749247849405,0.80233,2490.8,2490.2,2.00628]
[1749247849705,0.80233,2490.8,2490.7,0.80232]
[1749247849906,0.80237,2490.7,2490.6,0.80236]
[1749247850095,0.80238,2490.6,2490.5,5.53439]
[1749247850402,0.80238,2490.6,2490.5,4.732]
[1749247850798,0.80238,2490.6,2490.5,5.53441]
[1749247851304,2.19408,2490.6,2490.5,5.53441]
[1749247851908,0.80238,2490.6,2490.5,5.53441]
[1749247856002,0.80238,2490.6,2490.5,4.732]
[1749247856304,0.80241,2490.5,2490.4,4.731]
[1749247856503,6.52018,2490.6,2490.3,4.731]
[1749247856700,1.46234,2490.4,2490.3,4.731]
[1749247857895,1.46234,2490.4,2490.3,5.53348]
[1749247858099,1.46234,2490.4,2490.0,5.21423]
[1749247858100,0.6599,2490.4,2490.0,3.2078]
[1749247858302,0.80257,2490.1,2490.0,0.80256]
[1749247860701,2.10984,2490.2,2490.1,0.80255]
[1749247862107,2.46071323,2490.2,2490.1,0.80255]
[1749247862509,3.26322323,2490.2,2490.1,0.80255]
[1749247862714,2.10981,2490.2,2490.1,0.80255]
[1749247863109,3.26257727,2490.2,2490.1,0.80255]
[1749247863406,1.15276727,2490.2,2490.1,0.80255]
[1749247863610,0.6396,2490.7,2490.1,5.0]
[1749247863908,0.6396,2490.7,2490.6,0.80238]
[1749247864107,1.79302737,2490.7,2490.6,0.80238]
[1749247867110,1.15342737,2490.7,2490.6,0.80238]
[1749247867310,1.15342737,2490.7,2490.6,1.46208]
[1749247867512,0.80238,2490.6,2490.5,4.731]
[1749247867806,1.95580737,2490.6,2490.5,4.736]
[1749247868010,3.26730737,2490.6,2490.5,4.736]
[1749247868511,0.80241,2490.5,2490.4,0.80243]
[1749247868711,2.46492737,2490.5,2490.3,8.74625]
[1749247868912,1.15342737,2490.4,2490.3,8.74625]
[1749247869105,1.95586737,2490.4,2490.3,8.74625]
[1749247869309,1.15342737,2490.4,2490.3,8.74625]
[1749247872113,1.15342737,2490.4,2490.3,5.53845]
[1749247874511,4.36122737,2490.4,2490.0,3.2078]
[1749247874812,0.80257,2490.1,2490.0,0.80255]
[1749247875016,1.95599737,2490.1,2490.0,0.80255]
[1749247878617,1.15342737,2490.1,2490.0,0.80255]
[1749247878818,1.15555122,2490.2,2489.9,2.00652]
[1749247879011,1.15555122,2490.1,2490.0,0.80257]
[1749247882512,3.2078,2490.7,2490.1,2.00634]
[1749247882714,2.61214513,2490.6,2490.5,0.80238]
[1749247883216,3.93514513,2490.6,2490.5,0.80238]
[1749247883417,0.80244,2490.5,2490.4,0.80242]
[1749247883613,1.95749513,2490.5,2490.4,0.80242]
[1749247885221,0.80248,2490.4,2490.3,0.80246]
[1749247885518,0.80248,2490.4,2490.0,0.80254]
[1749247885519,0.80256,2490.1,2490.0,0.80254]
[1749247885717,0.80253,2490.2,2490.1,0.80252]
[1749247885920,1.95774517,2490.2,2490.1,0.80252]
[1749247886517,0.80254,2490.1,2490.0,5.53857]
[1749247887023,0.80254,2490.1,2489.8,1.43572]
[1749247887024,1.15563454,2490.1,2489.8,1.43572]
[1749247887212,0.80261,2489.9,2489.8,5.53864]
[1749247887519,1.33653351,2490.1,2489.7,0.8086718]
[1749247887520,0.80264,2489.8,2489.7,0.8086718]
[1749247887819,0.6324,2489.8,2489.7,0.8086718]
[1749247889922,1.43504,2489.8,2489.7,0.8086718]
[1749247890818,1.43504,2489.8,2489.7,0.0060218]
[1749247891017,2.5899718,2489.8,2489.7,0.0060218]
[1749247892215,5.7977718,2489.8,2489.7,0.0060218]
[1749247893517,5.7977718,2489.8,2489.7,0.8086918]
[1749247893718,5.7977718,2489.8,2489.7,0.0060218]
[1749247900122,0.8028,2489.3,2489.2,7.9398]
[1749247900519,0.80283,2489.2,2489.1,2.19145347]
[1749247902028,1.47853,2489.3,2489.2,0.80283]
[1749247902227,0.80283,2489.2,2489.1,2.19145347]
[1749247904434,0.80283,2489.2,2489.1,1.38860347]
[1749247904630,0.80283,2489.2,2489.1,2.19146347]
[1749247905029,0.80283,2489.2,2489.1,1.38860347]
[1749247905236,3.94291476,2489.2,2489.1,1.38860347]
[1749247914542,2.77313,2489.2,2489.1,1.38860347]
[1749247914737,3.94029602,2489.2,2489.1,1.38860347]
[1749247916342,2.61059602,2489.2,2489.1,1.38860347]
[1749247918542,3.95449602,2489.2,2489.1,1.38860347]
[1749247921144,1.16716602,2489.2,2489.1,2.19146347]
[1749247921347,1.97189636,2489.2,2489.1,1.38860347]
[1749247923550,4.53227636,2489.2,2488.7,0.6579]
[1749247923843,2.00749,2488.7,2488.0,3.2078]
[1749247924045,3.2078,2488.2,2487.6,5.21615]
[1749247924352,0.8032,2488.1,2488.0,0.8032]
[1749247924552,4.01098,2488.2,2488.1,0.80319]
[1749247924754,0.8032,2488.1,2488.0,0.8032]
[1749247925052,4.01097,2488.2,2488.1,0.80319]
[1749247925452,3.2078,2488.2,2487.8,0.6912218]
[1749247925649,3.2078,2488.2,2487.9,1.3741]
[1749247925854,4.01098,2488.2,2488.1,0.80319]
[1749247926848,3.2078,2488.2,2488.1,0.80319]
[1749247928053,0.0060218,2488.3,2488.0,0.07133351]
[1749247928054,0.0060218,2488.3,2488.2,0.80315]
[1749247929659,0.0060218,2488.3,2488.2,5.80315]
[1749247931360,0.0060218,2488.3,2488.2,0.80315]
[1749247933961,0.0060218,2488.3,2488.2,5.80315]
[1749247938162,0.80294,2488.9,2488.8,0.80296]
[1749247938357,1.98581813,2488.9,2488.8,0.80296]
[1749247939458,1.18287813,2488.9,2488.8,0.80296]
[1749247940369,1.98580813,2488.9,2488.8,0.80296]
[1749247945173,1.18287813,2488.9,2488.8,0.80296]
[1749247946966,5.9419118,2489.1,2489.0,0.8029]
[1749247947173,7.12495684,2489.1,2489.0,0.8029]
[1749247948074,3.91715684,2489.1,2489.0,0.8029]
[1749247948671,1.18906684,2489.1,2489.0,4.0107]
[1749247948977,0.0060218,2489.1,2489.0,4.0107]
[1749247949369,0.0060218,2489.1,2489.0,8.7437]
[1749247952769,1.8e-06,2489.1,2489.0,13.7437]
[1749247952978,4.01038,2490.0,2489.9,0.80261]
[1749247952979,3.2078,2490.0,2489.9,0.80261]
[1749247953170,0.6753,2490.1,2490.0,0.80257]
[1749247954578,1.9981,2490.1,2490.0,0.80257]
[1749247960281,0.6753,2490.1,2490.0,0.80257]
[1749247961077,0.0060218,2490.3,2490.2,0.80251]
[1749247961284,0.0060218,2490.3,2490.2,8.74031]
[1749247961686,0.0060218,2490.3,2490.2,9.38061]
[1749247961888,0.0060218,2490.3,2490.2,10.71391]
[1749247962285,0.691,2490.6,2490.5,0.80241]
[1749247969499,2.09253351,2490.6,2490.5,0.80241]
[1749247969695,2.89491351,2490.6,2490.5,0.80241]
[1749247970588,4.016,2493.1,2490.5,8.2078]
[1749247970790,3.2078,2491.3,2490.9,3.2078]
[1749247970993,0.80229,2490.9,2490.7,4.729]
[1749247971193,1.9617,2490.8,2490.7,4.729]
[1749247971592,1.9617,2490.8,2490.7,5.53133]
[1749247975702,1.9617,2490.8,2490.7,0.80233]
[1749247976197,1.9617,2490.8,2490.5,0.0060218]
[1749247976198,0.80238,2490.6,2490.5,0.0060218]
[1749247976403,9.01018,2490.6,2490.5,0.0060218]
[1749247976701,10.26105207,2490.6,2490.5,0.0060218]
[1749247977000,11.57085207,2490.6,2490.5,0.0060218]
[1749247979503,6.57085207,2490.6,2490.5,0.0060218]
[1749247980304,11.57085207,2490.6,2490.5,0.0060218]
[1749247980501,0.80252,2490.2,2490.1,0.80252]
[1749247980696,1.98205856,2490.2,2490.1,0.80252]
[1749247981211,3.92665856,2490.2,2490.1,0.80252]
[1749247982897,3.12413856,2490.2,2490.1,0.80252]
[1749247983506,3.92664856,2490.2,2490.1,0.80252]
[1749247984705,3.12413856,2490.2,2490.1,0.80252]
[1749247985705,3.19547207,2490.2,2490.1,0.80252]
[1749247986302,3.99798207,2490.2,2490.1,0.80252]
[1749247986704,3.19547207,2490.2,2490.1,0.80252]
[1749247988206,3.99798207,2490.2,2490.1,0.80252]
[1749247988805,3.19547207,2490.2,2490.1,0.80252]
[1749247992709,3.19547207,2490.2,2490.1,0.80254]
[1749247995411,3.99798207,2490.2,2490.1,0.80254]
[1749247997114,3.19547207,2490.2,2490.1,0.80254]
[1749248000019,2.70428207,2490.2,2490.1,0.80254]
[1749248000214,0.80254,2490.1,2490.0,5.53155]
[1749248000515,2.84546351,2490.2,2490.1,0.80254]
[1749248000706,4.02845484,2490.2,2490.1,0.80254]
[1749248006417,7.23625484,2490.2,2490.1,0.80254]
[1749248006620,0.80257,2490.0,2489.9,0.0060218]
[1749248007118,1.98556133,2490.0,2489.9,0.0060218]
[1749248007315,4.03096133,2490.0,2489.9,0.0060218]
[1749248007512,9.03096133,2490.0,2489.9,0.0060218]
[1749248011419,4.03096133,2490.0,2489.9,0.0060218]
[1749248014722,4.03096133,2490.0,2489.3,0.6585]
[1749248014723,3.22839133,2490.0,2489.3,0.6585]
[1749248015026,2.00684,2489.5,2488.9,4.73]
[1749248015226,3.2078,2489.6,2488.7,4.603]
[1749248015227,0.80296,2488.8,2488.7,3.2078]
[1749248015530,0.80296,2488.8,2488.3,0.653]
[1749248015531,0.80307,2488.5,2488.4,0.80306]
[1749248015925,0.80307,2488.5,2488.3,0.653]
[1749248015926,0.80304,2488.6,2488.5,0.80305]
[1749248016127,1.98355353,2488.6,2488.5,0.80305]
[1749248016328,0.80306,2488.5,2488.4,0.80307]
[1749248016933,0.8031,2488.4,2488.3,0.8031]
[1749248017234,0.80312,2488.3,2488.2,0.6502218]
[1749248017433,0.80311,2488.4,2488.2,0.6502218]
[1749248017633,0.80311,2488.4,2488.3,0.80312]
[1749248018432,0.80311,2488.4,2488.2,1.4533718]
[1749248018634,0.80307,2488.5,2488.2,0.6502218]
[1749248018823,0.80309,2488.4,2488.3,0.8031]
[1749248019334,5.8483218,2488.7,2488.2,0.6502218]
[1749248019534,0.8031,2488.4,2488.3,0.80312]
[1749248019734,5.8483218,2488.7,2488.3,0.80312]
[1749248020334,0.80309,2488.5,2488.3,0.80312]
[1749248020632,0.80309,2488.4,2488.3,0.80312]
[1749248023230,0.80308,2488.5,2488.4,0.80308]
[1749248025138,0.80304,2488.6,2488.5,0.80303]
[1749248025339,0.80308,2488.5,2488.4,0.80307]
[1749248025631,4.5233218,2488.7,2488.6,0.80303]
[1749248025632,0.0060218,2488.7,2488.6,0.80303]
[1749248026340,0.0060218,2488.7,2488.6,4.67453]
[1749248030037,0.8090118,2488.7,2488.6,1.46673]
[1749248030229,0.8090118,2488.7,2488.6,0.80303]
[1749248030431,0.0060218,2488.7,2488.6,0.80303]
[1749248033641,0.8090118,2488.7,2488.6,0.80303]
[1749248036336,0.0060218,2488.7,2488.6,0.80303]
[1749248037041,0.8090118,2488.7,2488.6,0.80303]
[1749248037240,0.80306,2488.6,2488.4,0.6752]
[1749248038245,0.8090318,2488.7,2488.4,0.6752]
[1749248038446,0.8090318,2488.7,2488.6,0.80303]
[1749248040246,0.80304,2488.6,2488.5,0.80302]
[1749248040446,0.80305,2488.6,2488.5,0.80304]
[1749248042047,0.80305,2488.6,2488.2,0.8091718]
[1749248042048,0.80312,2488.3,2488.2,0.8091718]
[1749248043047,0.80312,2488.3,2488.2,0.0060218]
[1749248043244,2.74922,2488.3,2488.2,0.0060218]
[1749248043442,3.91743045,2488.3,2488.2,0.0060218]
[1749248063065,1.97133045,2488.3,2488.2,0.0060218]
[1749248063467,1.16821045,2488.3,2488.2,0.8091718]
[1749248064964,1.97133045,2488.3,2488.2,0.8091718]
[1749248065168,1.16821045,2488.3,2488.2,0.8091718]
[1749248066366,1.16821045,2488.3,2488.2,1.4814718]
[1749248066763,1.97133045,2488.3,2488.2,1.4814718]
[1749248067763,1.16821045,2488.3,2488.2,1.4814718]
[1749248067969,1.16821045,2488.3,2488.2,2.1104718]
[1749248069065,0.0060218,2488.7,2488.6,0.80302]
[1749248069371,1.17643591,2488.7,2488.6,4.01082]
[1749248070659,1.17643591,2488.7,2488.6,4.64182]
[1749248070865,1.97942591,2488.7,2488.6,4.64182]
[1749248071066,1.17643591,2488.7,2488.6,4.64182]
[1749248072374,1.17643591,2488.7,2488.6,1.43402]
[1749248073668,1.17656972,2488.7,2488.6,1.43402]
[1749248075164,0.0060218,2488.7,2488.6,4.64182]
[1749248077773,0.0060218,2488.7,2488.6,9.64182]
[1749248080373,0.8090118,2488.7,2488.6,4.64182]
[1749248080580,0.8090118,2488.7,2488.6,1.43402]
[1749248080782,0.8090118,2488.7,2488.5,0.80304]
[1749248080783,0.80302,2488.6,2488.5,0.80304]
[1749248083673,1.16878416,2488.6,2488.3,7.9388]
[1749248083876,1.16878416,2488.6,2488.4,0.80306]
[1749248083877,0.80308,2488.5,2488.4,0.80306]
[1749248084072,2.74314,2488.6,2488.5,0.80306]
[1749248084277,3.91191846,2488.6,2488.5,0.80306]
[1749248085079,0.80307,2488.5,2488.4,0.80307]
[1749248085880,2.74315,2488.6,2488.5,0.80306]
[1749248086082,3.91217639,2488.6,2488.5,0.80306]
[1749248086379,0.80307,2488.5,2488.4,0.80306]
[1749248086580,1.1691605,2488.5,2488.4,0.80306]
[1749248087580,2.74315,2488.6,2488.5,0.80306]
[1749248087782,3.9120415,2488.6,2488.5,0.80306]
[1749248089981,3.1089915,2488.6,2488.5,0.80306]
[1749248090383,3.9120115,2488.6,2488.5,0.80306]
[1749248090980,0.80309,2488.5,2488.4,0.80307]
[1749248091178,1.9719815,2488.5,2488.4,0.80307]
[1749248091373,3.2509815,2488.5,2488.4,0.80307]
[1749248092678,2.4478915,2488.5,2488.4,0.80307]
[1749248093582,3.2509515,2488.5,2488.4,0.80307]
[1749248093775,0.80309,2488.4,2488.3,4.731]
[1749248093970,0.80312,2488.3,2488.2,0.8091618]
[1749248094176,1.9720115,2488.3,2488.2,0.8091618]
[1749248094374,3.2703115,2488.3,2488.2,0.8091618]
[1749248095284,2.4671915,2488.3,2488.2,0.8091618]
[1749248096376,3.2703115,2488.3,2488.2,0.8091618]
[1749248098584,2.4671915,2488.3,2488.2,0.8091618]
[1749248099590,1.1688915,2488.3,2488.2,0.8091618]
[1749248101384,1.9720115,2488.3,2488.2,0.8091618]
[1749248101781,1.1688915,2488.3,2488.2,0.8091618]
[1749248105183,1.17029982,2488.5,2488.2,0.8091718]
[1749248105485,1.17029662,2488.4,2488.3,1.43182]
[1749248106788,1.97338662,2488.4,2488.3,1.43182]
[1749248106986,1.97338662,2488.4,2488.3,0.80312]
[1749248107182,0.80312,2488.3,2488.2,0.0060218]
[1749248107382,6.49261662,2488.3,2488.2,0.0060218]
[1749248108290,2.48169662,2488.3,2488.2,0.8091718]
[1749248108490,3.28481662,2488.3,2488.2,0.8091718]
[1749248109188,2.48169662,2488.3,2488.2,0.8091718]
[1749248109490,3.28481662,2488.3,2488.2,0.8091718]
[1749248109996,1.17029662,2488.3,2488.2,0.8091718]
[1749248110483,1.97341662,2488.3,2488.2,0.8091718]
[1749248110679,1.17029662,2488.3,2488.2,0.8091718]
[1749248111091,1.97341662,2488.3,2488.2,0.8091718]
[1749248112191,1.17029662,2488.3,2488.2,0.8091718]
[1749248112690,1.97341662,2488.3,2488.2,0.0060218]
[1749248112890,1.97341662,2488.3,2488.2,0.8091718]
[1749248114286,1.17029662,2488.3,2488.2,0.8091718]
[1749248114492,0.0060218,2488.7,2488.2,5.0060218]
[1749248114493,1.17137548,2488.4,2488.2,5.0060218]
[1749248114789,0.0060218,2488.7,2488.6,0.80302]
[1749248115193,1.1774894,2488.7,2488.6,0.80302]
[1749248115390,1.9804794,2488.7,2488.6,0.80302]
[1749248115995,1.1774894,2488.7,2488.6,0.80302]
[1749248117393,1.9804794,2488.7,2488.6,0.80302]
[1749248118391,1.1774894,2488.7,2488.6,0.80302]
[1749248120690,1.1774894,2488.7,2488.6,0.87435351]
[1749248122895,0.0060218,2488.7,2488.6,0.87435351]
[1749248123195,1.17760554,2488.7,2488.6,0.87435351]
[1749248125395,1.98060554,2488.7,2488.6,0.87435351]
[1749248127402,1.98060554,2488.7,2488.6,0.07133351]
[1749248127597,3.34020554,2488.7,2488.6,0.07133351]
[1749248128102,3.34020554,2488.7,2488.6,0.87435351]
[1749248128295,3.34020554,2488.7,2488.6,0.07133351]
[1749248129202,3.34020554,2488.7,2488.6,0.87435351]
[1749248133004,2.53720554,2488.7,2488.6,0.87435351]
[1749248133603,2.56332593,2488.7,2488.6,0.87435351]
[1749248134403,1.20372593,2488.7,2488.6,0.87435351]
[1749248138401,1.20497856,2488.7,2488.6,0.87435351]
[1749248139309,1.20519224,2488.7,2488.6,0.87435351]
[1749248139509,2.00818224,2488.7,2488.6,0.87435351]
[1749248140110,3.27368224,2488.7,2488.6,0.80302]
[1749248141110,3.27368224,2488.7,2488.3,8.12059]
[1749248141111,0.80309,2488.5,2488.4,0.80307]
[1749248141300,2.00226044,2488.5,2488.4,0.80307]
[1749248141709,3.28476044,2488.5,2488.4,0.80307]
[1749248142510,3.28473044,2488.5,2488.4,0.80307]
[1749248143212,0.80312,2488.3,2488.2,0.0060218]
[1749248143415,2.00229044,2488.3,2488.2,0.0060218]
[1749248143908,3.39199044,2488.3,2488.2,0.0060218]
[1749248145206,3.39199044,2488.3,2488.2,0.8091718]
[1749248145412,3.39199044,2488.3,2488.2,0.0060218]
[1749248146514,3.39199044,2488.3,2488.2,0.8091718]
[1749248147408,3.39199044,2488.3,2488.2,0.0060218]
[1749248149114,3.39199044,2488.3,2488.2,0.07735531]
[1749248150416,3.39039738,2488.3,2488.2,0.07735531]
[1749248158225,3.39039738,2488.3,2488.2,0.0060218]
[1749248159325,3.39039738,2488.3,2488.2,0.07735531]
[1749248171929,6.59819738,2488.3,2488.2,0.07735531]
[1749248175033,0.80347,2487.3,2487.2,5.52846]
[1749248175232,2.00104738,2487.3,2487.2,6.21716]
[1749248175426,2.00349759,2487.3,2487.2,7.56956]
[1749248176030,1.20002759,2487.3,2487.2,7.56956]
[1749248177938,0.80344,2487.4,2487.3,0.80344]
[1749248178137,2.00177065,2487.4,2487.3,0.80344]
[1749248178533,0.80344,2487.3,2487.2,2.84455]
[1749248178742,0.80344,2487.3,2487.2,7.56755]
[1749248178935,0.80344,2487.4,2487.3,0.80342]
[1749248179131,2.0015579,2487.4,2487.3,0.80342]
[1749248181839,0.80344,2487.3,2487.2,7.63888351]
[1749248183642,0.80343,2487.4,2487.3,0.80341]
[1749248183933,2.01181141,2487.4,2487.3,0.80341]
[1749248186037,0.80344,2487.3,2487.2,7.63889351]
[1749248186233,0.80344,2487.3,2487.2,7.63891351]
[1749248186540,0.80344,2487.3,2487.2,6.28651351]
[1749248186740,2.01180726,2487.3,2487.2,6.28651351]
[1749248186937,2.01168521,2487.3,2487.2,6.28651351]
[1749248187240,0.80344,2487.3,2487.2,6.28651351]
[1749248187840,2.01169208,2487.3,2487.2,6.28651351]
[1749248188040,0.80344,2487.3,2487.2,6.28651351]
[1749248188240,2.01177783,2487.3,2487.2,6.28651351]
[1749248188740,0.80344,2487.3,2487.2,6.28651351]
[1749248188935,2.01175767,2487.3,2487.2,6.28651351]
[1749248196045,1.20831767,2487.3,2487.2,6.28651351]
[1749248196243,0.80341,2487.5,2487.4,0.80341]
[1749248196440,1.20832597,2487.5,2487.4,3.2078]
[1749248196639,1.20832597,2487.5,2487.4,9.01121]
[1749248196944,0.80327,2487.9,2487.8,0.80328]
[1749248197343,2.01192663,2487.9,2487.8,0.80328]
[1749248199349,0.80328,2487.8,2487.7,4.68839]
[1749248199549,2.01193663,2487.8,2487.7,4.68839]
[1749248200751,1.20865663,2487.8,2487.7,4.68839]
[1749248200953,0.80328,2487.8,2487.7,4.68839]
[1749248201341,2.01193663,2487.8,2487.7,4.68839]
[1749248201541,1.20865663,2487.8,2487.7,4.68839]
[1749248203554,2.01193663,2487.8,2487.7,4.68839]
[1749248205154,1.20865663,2487.8,2487.7,4.68839]
[1749248205651,1.20865663,2487.8,2487.7,1.48059]
[1749248206049,2.01193663,2487.8,2487.7,1.48059]
[1749248206351,1.20865663,2487.8,2487.7,1.48059]
[1749248208554,0.80323,2488.0,2487.7,1.48059]
[1749248208555,1.20880456,2487.9,2487.7,0.6773]
[1749248208752,0.80322,2488.0,2487.7,0.6773]
[1749248208753,1.20880456,2487.8,2487.7,2.77351]
[1749248208955,0.80322,2488.0,2487.9,0.80325]
[1749248209257,2.01186123,2488.0,2487.9,0.80325]
[1749248209956,2.01186123,2488.0,2487.9,4.01105]
[1749248211148,1.20864123,2488.0,2487.9,4.01105]
[1749248211852,2.01186123,2488.0,2487.9,4.01105]
[1749248212049,1.20864123,2488.0,2487.9,4.01105]
[1749248212654,1.20864123,2488.0,2487.9,8.73105]
[1749248213559,3.21670123,2488.0,2487.7,1.55192351]
[1749248213756,3.87634123,2487.9,2487.8,4.72]
[1749248214149,3.87634123,2487.9,2487.7,0.74863351]
[1749248214150,0.80328,2487.8,2487.7,0.07133351]
[1749248214350,3.39212123,2487.8,2487.7,0.07133351]
[1749248214965,3.39212123,2487.8,2487.0,0.0060218]
[1749248214966,0.80351,2487.1,2487.0,0.0060218]
[1749248215260,2.01132169,2487.1,2487.0,0.0060218]
[1749248215460,2.01132169,2487.1,2487.0,0.8095618]
[1749248218969,2.01132169,2487.1,2487.0,0.0060218]
[1749248219157,6.59282169,2487.1,2487.0,0.0060218]
[1749248219360,3.38502169,2487.1,2487.0,0.0060218]
[1749248219959,1.20781169,2487.1,2487.0,0.8095618]
[1749248222472,2.01132169,2487.1,2487.0,0.8095618]
[1749248222765,1.20781169,2487.1,2487.0,0.8095618]
[1749248222964,2.01132169,2487.1,2487.0,0.8095618]
[1749248223465,0.80364,2486.7,2486.5,4.721]
[1749248223670,0.80357,2486.9,2486.8,0.80357]
[1749248223967,1.20360805,2486.9,2486.8,0.80357]
[1749248224269,1.20360805,2486.9,2486.6,2.00917]
[1749248224270,2.86825,2487.0,2486.9,0.80357]
[1749248224472,4.07185999,2487.0,2486.9,0.80357]
[1749248224766,3.26830999,2487.0,2486.9,0.80357]
[1749248225467,4.07184999,2487.0,2486.9,0.80357]
[1749248225676,3.26830999,2487.0,2486.9,0.80357]
[1749248226173,4.07184999,2487.0,2486.9,0.80357]
[1749248226964,1.89000999,2487.0,2486.9,0.80357]
[1749248227276,3.2078,2487.1,2486.7,2.6515018]
[1749248227277,3.2078,2487.1,2487.0,0.80354]
[1749248227568,1.3255,2487.2,2487.1,0.80351]
[1749248229170,0.0060218,2487.3,2487.2,0.80348]
[1749248229371,1.19902068,2487.3,2487.2,0.80348]
[1749248229968,2.00246068,2487.3,2487.2,0.80348]
[1749248230172,0.80351,2487.2,2487.1,0.80348]
[1749248230372,2.14691,2487.2,2487.1,0.80348]
[1749248230568,0.80351,2487.1,2487.0,0.07133351]
[1749248230773,2.14691,2487.1,2487.0,0.07133351]
[1749248231070,6.54731705,2487.1,2487.0,0.07133351]
[1749248234776,6.54731705,2487.1,2487.0,0.87487351]
[1749248234978,6.54731705,2487.1,2487.0,0.07133351]
[1749248236680,6.54731705,2487.1,2487.0,0.87487351]
[1749248237382,2.53600705,2487.1,2487.0,0.87487351]
[1749248237581,3.33951705,2487.1,2487.0,0.87487351]
[1749248237974,3.33958015,2487.1,2487.0,0.87487351]
[1749248239882,1.19267015,2487.1,2487.0,0.87487351]
[1749248240081,1.9966105,2487.2,2487.1,0.80349]
[1749248240278,1.9966139,2487.2,2487.1,0.80349]
[1749248248292,1.9966139,2487.2,2487.1,0.80351]
[1749248248890,2.00025262,2487.2,2487.1,0.80351]
[1749248251796,1.19674262,2487.2,2487.1,0.80351]
[1749248252898,2.00022262,2487.2,2487.1,0.80351]
[1749248254292,0.80351,2487.1,2487.0,0.07133351]
[1749248254502,2.00025262,2487.1,2487.0,0.07133351]
[1749248254795,2.00025262,2487.1,2487.0,0.80354]
[1749248259495,1.19674262,2487.1,2486.7,0.0060218]
[1749248259702,0.8036,2486.8,2486.7,0.0060218]
[1749248259902,2.00034262,2486.8,2486.7,0.0060218]
[1749248262198,2.00034262,2486.8,2486.7,0.8096618]
[1749248263999,2.00034262,2486.8,2486.7,0.0060218]
[1749248264602,2.00034262,2486.8,2486.7,0.8096618]
[1749248264900,2.00034262,2486.8,2486.7,0.0060218]
[1749248266199,5.20814262,2486.8,2486.7,0.0060218]
[1749248269995,5.20814262,2486.8,2486.7,0.07735531]
[1749248280710,5.20546964,2486.8,2486.7,0.07735531]
[1749248290210,5.20893335,2486.8,2486.7,0.07735531]
[1749248294714,5.20893335,2486.8,2486.7,0.01308296]
[1749248299819,0.80367,2486.6,2486.5,0.0060218]
[1749248300020,2.00120335,2486.6,2486.5,0.0060218]
[1749248300421,3.26590335,2486.6,2486.5,0.0060218]
[1749248300918,3.26590335,2486.6,2486.5,0.00107241]
[1749248302033,11.48070335,2486.6,2485.3,5.37860001]
[1749248302322,3.2078,2486.0,2485.9,0.8039]
[1749248302525,4.40533335,2486.0,2485.9,0.8039]
[1749248303622,5.20919335,2486.0,2485.9,0.8039]
[1749248304217,0.80391,2485.9,2485.8,0.8039]
[1749248304420,0.80393,2485.8,2485.7,2.18484]
[1749248304620,1.19753335,2485.9,2485.7,2.18484]
[1749248304621,0.80392,2485.9,2485.8,0.80391]
[1749248304822,2.00054585,2485.9,2485.8,0.80391]
[1749248306928,2.00052585,2485.9,2485.8,0.80391]
[1749248307430,0.80393,2485.8,2485.7,2.18484]
[1749248308427,0.80396,2485.7,2485.6,1.2626]
[1749248309125,1.99924189,2485.7,2485.6,0.6335]
[1749248309432,0.80403,2485.5,2485.4,4.717]
[1749248309621,0.80403,2485.5,2485.4,5.3896]
[1749248310027,0.80403,2485.5,2485.4,6.19366]
[1749248310334,1.99842075,2485.5,2485.4,5.3896]
[1749248310531,0.8042,2485.0,2484.9,0.8042]
[1749248310730,32.5318,2485.0,2483.5,5.59146511]
[1749248310931,32.5318,2485.0,2483.8,3.2078]
[1749248310932,3.2078,2484.4,2483.8,3.2078]
[1749248311128,0.00603415,2484.5,2484.1,3.2078]
[1749248311431,0.00603415,2484.5,2484.0,4.718]
[1749248311630,0.00603415,2484.5,2484.1,4.4796]
[1749248311832,0.00603415,2484.5,2484.4,0.80438]
[1749248312027,0.00603415,2484.5,2484.4,5.52238]
[1749248312333,0.00603415,2484.5,2484.3,4.718]
[1749248312632,0.00603415,2484.5,2484.4,2.07618]
[1749248312836,0.00603415,2484.5,2484.4,2.75928]
[1749248313033,0.00603415,2484.5,2484.4,15.68508]
[1749248313235,0.00603415,2484.5,2484.4,12.47728]
[1749248314129,0.00603415,2484.5,2484.4,7.75928]
[1749248314529,0.00603415,2484.5,2484.4,7.47728]
[1749248314729,0.00603415,2484.5,2484.4,7.54861351]
[1749248315130,3.2078,2485.0,2484.9,0.80422]
[1749248315326,3.2078,2485.6,2484.9,4.718]
[1749248315634,4.0118,2485.6,2485.4,0.80404]
[1749248315833,4.0118,2485.6,2485.5,0.6565]
[1749248318330,3.2078,2485.6,2485.5,1.46053]
[1749248319132,4.01179,2485.6,2485.5,0.6565]
[1749248319341,4.01179,2485.6,2485.5,5.3755]
[1749248320740,4.01179,2485.6,2485.5,4.719]
[1749248324144,4.01179,2485.6,2485.5,5.52303]
[1749248324643,3.2078,2485.6,2485.5,5.52303]
[1749248326346,0.00603415,2485.8,2485.7,0.80396]
[1749248329241,0.00603415,2485.8,2485.7,2.80226]
[1749248331044,0.00603415,2485.8,2485.7,2.87359351]
[1749248331547,0.00603415,2485.8,2485.7,4.91933351]
[1749248331548,0.80996415,2485.8,2485.7,4.91933351]
[1749248331747,0.80996415,2485.8,2485.7,5.72329351]
[1749248332241,2.17606415,2485.8,2485.7,5.72329351]
[1749248332443,5.38386415,2485.8,2485.7,5.72329351]
[1749248333051,4.57993415,2485.8,2485.7,5.72329351]
[1749248333349,5.38386415,2485.8,2485.7,5.72329351]
[1749248334650,4.57993415,2485.8,2485.7,5.72329351]
[1749248337351,3.21383415,2485.8,2485.7,5.72329351]
[1749248337552,0.00603415,2485.8,2485.7,5.72329351]